bitfinex-derivatives/quotes_BTCF0:USTF0_20251115
["timestamp","ask_amount","ask_price","bid_price","bid_amount"]
[1763190513685,0.00219803,96160.0,96146.0,0.00015604]
[1763190513886,0.46480001,96150.0,96146.0,0.00015604]
[1763190514087,0.3608,96150.0,96146.0,0.00015604]
[1763190514289,0.11465047,96149.0,96146.0,0.00015604]
[1763190514891,0.11465047,96149.0,96146.0,0.04423604]
[1763190524498,0.3608,96147.0,96146.0,0.04423604]
[1763190524897,0.47281162,96147.0,96146.0,0.04423604]
[1763190526503,0.47381162,96147.0,96146.0,0.04423604]
[1763190528404,0.47281162,96147.0,96146.0,0.04423604]
[1763190529308,0.47281162,96147.0,96146.0,0.00015604]
[1763190530006,0.47281162,96147.0,96146.0,0.02167604]
[1763190530505,0.47281162,96147.0,96146.0,0.00015604]
[1763190530695,0.47281162,96147.0,96139.0,0.07308]
[1763190538713,0.47281162,96147.0,96139.0,0.04408]
[1763190540111,0.11201162,96147.0,96139.0,0.04408]
[1763190540315,0.3608,96142.0,96139.0,0.04408]
[1763190540605,0.12040532,96141.0,96139.0,0.04408]
[1763190541500,0.12040532,96141.0,96138.0,0.01282]
[1763190541501,0.12040532,96141.0,96140.0,0.04323]
[1763190542601,0.11565861,96149.0,96148.0,0.04323]
[1763190542808,0.00219803,96150.0,96149.0,0.04323]
[1763190543213,0.1129439,96150.0,96149.0,0.04323]
[1763190544413,0.1139439,96150.0,96149.0,0.04323]
[1763190553418,0.11174587,96150.0,96149.0,0.04323]
[1763190555628,0.11174587,96150.0,96149.0,0.08059426]
[1763190555921,0.11174587,96150.0,96149.0,0.04323]
[1763190555922,0.001,96150.0,96149.0,0.04323]
[1763190556120,0.00015604,96153.0,96152.0,0.04541]
[1763190556318,0.00015604,96153.0,96152.0,0.40621]
[1763190557224,0.00115604,96153.0,96152.0,0.40621]
[1763190558525,0.10731429,96162.0,96152.0,0.40621]
[1763190558726,0.10731429,96162.0,96161.0,0.04541]
[1763190558926,0.1164676,96161.0,96160.0,0.05838]
[1763190559230,0.1364276,96162.0,96161.0,0.04541]
[1763190559525,0.1563876,96162.0,96161.0,0.04541]
[1763190559727,0.1573876,96162.0,96161.0,0.04541]
[1763190560529,0.1573876,96162.0,96161.0,0.40621]
[1763190560833,0.1583876,96162.0,96161.0,0.40621]
[1763190561327,0.1184676,96162.0,96161.0,0.40621]
[1763190561530,0.002,96162.0,96161.0,0.40621]
[1763190564120,0.00010275,96171.0,96170.0,0.05838]
[1763190564425,0.00010275,96171.0,96170.0,0.41918]
[1763190565430,0.00210275,96171.0,96170.0,0.41918]
[1763190567526,0.40605,96192.0,96191.0,0.04541]
[1763190568031,0.52537827,96192.0,96191.0,0.04541]
[1763190568733,0.52637827,96192.0,96191.0,0.04541]
[1763190568932,0.16557827,96192.0,96191.0,0.04541]
[1763190569528,0.12032827,96192.0,96191.0,0.04541]
[1763190570034,0.12132827,96192.0,96191.0,0.04541]
[1763190570235,0.002,96192.0,96191.0,0.40621]
[1763190570429,0.002,96192.0,96191.0,0.44359913]
[1763190570630,0.002,96192.0,96191.0,0.40621]
[1763190571334,0.12063429,96210.0,96195.0,0.04505]
[1763190571335,0.02715,96196.0,96195.0,0.04505]
[1763190571634,0.16646395,96196.0,96195.0,0.04505]
[1763190579949,0.16646395,96196.0,96191.0,0.3608]
[1763190579950,0.04477,96192.0,96191.0,0.3608]
[1763190580243,0.15605037,96192.0,96191.0,0.3608]
[1763190583342,0.04477,96183.0,96182.0,0.09642596]
[1763190583637,0.16088481,96183.0,96182.0,0.09642596]
[1763190583942,0.16088481,96183.0,96182.0,0.00015596]
[1763190584452,0.16088481,96183.0,96182.0,0.02295596]
[1763190586636,0.16088481,96183.0,96182.0,0.04520596]
[1763190591944,0.16088481,96183.0,96182.0,0.04620596]
[1763190592554,0.02215,96183.0,96182.0,0.04620596]
[1763190593446,0.02215,96190.0,96182.0,0.03843079]
[1763190593753,0.04477,96190.0,96189.0,0.40585]
[1763190593953,0.04696803,96190.0,96189.0,0.40585]
[1763190594252,0.04696803,96190.0,96189.0,0.44312483]
[1763190594646,0.04696803,96190.0,96189.0,0.40585]
[1763190598039,0.00219803,96190.0,96189.0,0.40585]
[1763190598245,0.00219803,96190.0,96189.0,0.5659262]
[1763190598649,0.0483,96196.0,96195.0,0.04407]
[1763190598844,0.0483,96196.0,96195.0,0.08144644]
[1763190599040,0.16320741,96196.0,96195.0,0.08144644]
[1763190599351,0.16320741,96196.0,96195.0,0.04407]
[1763190599753,0.005,96196.0,96195.0,0.05673]
[1763190600153,0.02606,96196.0,96195.0,0.05673]
[1763190600448,0.005,96196.0,96195.0,0.05673]
[1763190601351,0.0483,96196.0,96195.0,0.0217]
[1763190601557,0.16516687,96196.0,96195.0,0.0217]
[1763190601757,0.16516687,96196.0,96195.0,0.04407]
[1763190605154,0.0433,96193.0,96192.0,0.40487]
[1763190605462,0.16371425,96193.0,96192.0,0.40487]
[1763190607357,0.0433,96191.0,96190.0,0.03738736]
[1763190607646,0.04549803,96190.0,96189.0,0.05908736]
[1763190607848,0.0433,96189.0,96188.0,0.05908736]
[1763190608258,0.15387588,96189.0,96188.0,0.05908736]
[1763190608552,0.15387588,96189.0,96188.0,0.03738736]
[1763190608757,0.0433,96188.0,96187.0,0.09627]
[1763190609151,0.1628609,96188.0,96187.0,0.09627]
[1763190609954,0.1628609,96188.0,96187.0,0.14034]
[1763190610451,0.1628609,96188.0,96187.0,0.11864]
[1763190610658,0.1628609,96188.0,96187.0,0.09627]
[1763190610857,0.1628609,96188.0,96187.0,0.05798377]
[1763190611059,0.1628609,96188.0,96187.0,0.02298377]
[1763190611260,0.04487,96183.0,96182.0,0.00015596]
[1763190611652,0.16220789,96183.0,96182.0,0.00015596]
[1763190612857,0.16320789,96183.0,96182.0,0.00015596]
[1763190613949,0.16320789,96183.0,96182.0,0.04354596]
[1763190616952,0.11833789,96183.0,96182.0,0.04354596]
[1763190617358,0.001,96183.0,96182.0,0.08093332]
[1763190617755,0.001,96183.0,96182.0,0.04354596]
[1763190619452,0.00025986,96206.0,96183.0,0.1040358]
[1763190619760,0.00025986,96206.0,96195.0,0.40419]
[1763190620064,0.11922647,96196.0,96195.0,0.40419]
[1763190620663,0.16409647,96196.0,96195.0,0.40419]
[1763190620862,0.16509647,96196.0,96195.0,0.40419]
[1763190622359,0.16609647,96196.0,96195.0,0.40419]
[1763190625474,0.16609647,96196.0,96195.0,0.41796]
[1763190628572,0.16609647,96196.0,96195.0,0.40419]
[1763190628878,0.16609647,96196.0,96195.0,0.3608]
[1763190630679,0.16609647,96196.0,96195.0,0.38378]
[1763190631375,0.16609647,96196.0,96188.0,0.03736587]
[1763190631376,0.04395,96189.0,96188.0,0.03736587]
[1763190631580,0.04395,96185.0,96184.0,0.08525]
[1763190632081,0.15989532,96185.0,96184.0,0.10823]
[1763190632277,0.15989532,96185.0,96184.0,0.13019]
[1763190633172,0.16089532,96185.0,96184.0,0.13019]
[1763190633577,0.16189532,96185.0,96184.0,0.13019]
[1763190635185,0.16189532,96185.0,96184.0,0.10823]
[1763190635677,0.16189532,96185.0,96184.0,0.13019]
[1763190638488,0.16189532,96185.0,96184.0,0.10823]
[1763190638883,0.16189532,96185.0,96184.0,0.08525]
[1763190640182,0.16189532,96185.0,96184.0,0.13019]
[1763190652399,0.16189532,96185.0,96184.0,0.1435]
[1763190653101,0.16189532,96185.0,96184.0,0.05825]
[1763190655499,0.11794532,96185.0,96184.0,0.05825]
[1763190655701,0.11794532,96185.0,96184.0,0.45641587]
[1763190656104,0.11794532,96185.0,96184.0,0.41905]
[1763190660298,0.08045574,96185.0,96184.0,0.41905]
[1763190662713,0.002,96185.0,96184.0,0.41905]
[1763190663206,0.005,96196.0,96185.0,0.1040338]
[1763190663401,0.005,96196.0,96195.0,0.40455]
[1763190663607,0.02694,96196.0,96195.0,0.40455]
[1763190663806,0.14091366,96196.0,96195.0,0.40455]
[1763190664400,0.14191366,96196.0,96195.0,0.40455]
[1763190665807,0.14291366,96196.0,96195.0,0.40455]
[1763190666311,0.14291366,96196.0,96195.0,0.44195752]
[1763190667107,0.14291366,96196.0,96195.0,0.40455]
[1763190673613,0.16499366,96196.0,96195.0,0.40455]
[1763190675119,0.14291366,96196.0,96195.0,0.40455]
[1763190677318,0.16605366,96196.0,96195.0,0.40455]
[1763190682419,0.16605366,96196.0,96195.0,0.44195752]
[1763190682618,0.14291366,96196.0,96195.0,0.44195752]
[1763190682925,0.14351366,96196.0,96195.0,0.44195752]
[1763190683127,0.16665366,96196.0,96195.0,0.44195752]
[1763190683326,0.16565366,96196.0,96195.0,0.40455]
[1763190684526,0.16465366,96196.0,96195.0,0.40455]
[1763190687319,0.16465366,96196.0,96195.0,0.46066128]
[1763190687514,0.16465366,96196.0,96195.0,0.47349128]
[1763190689122,0.16465366,96196.0,96195.0,0.41738]
[1763190689328,0.16465366,96196.0,96195.0,0.47349128]
[1763190691730,0.16465366,96196.0,96195.0,0.41738]
[1763190695039,0.16465366,96196.0,96195.0,0.38189]
[1763190695539,0.16465366,96196.0,96195.0,0.40327]
[1763190704446,0.14151366,96196.0,96195.0,0.40327]
[1763190704741,0.16448366,96196.0,96195.0,0.40327]
[1763190705742,0.11897366,96196.0,96195.0,0.45938128]
[1763190705942,0.11897366,96196.0,96195.0,0.40327]
[1763190710354,0.14130366,96196.0,96195.0,0.40327]
[1763190710651,0.16427366,96196.0,96195.0,0.40327]
[1763190720456,0.14130366,96196.0,96195.0,0.40327]
[1763190720654,0.11897366,96196.0,96195.0,0.40327]
[1763190721555,0.14113366,96196.0,96195.0,0.40327]
[1763190721860,0.16430366,96196.0,96195.0,0.40327]
[1763190722559,0.16430366,96196.0,96195.0,0.45943783]
[1763190723056,0.13932359,96196.0,96195.0,0.45943783]
[1763190723355,0.11615359,96196.0,96195.0,0.45943783]
[1763190723754,0.13932359,96196.0,96195.0,0.45943783]
[1763190724356,0.11615359,96196.0,96195.0,0.45943783]
[1763190724558,0.09399359,96196.0,96195.0,0.45943783]
[1763190725361,0.09399359,96196.0,96195.0,0.40327]
[1763190725866,0.11615359,96196.0,96195.0,0.40327]
[1763190726261,0.13932359,96196.0,96195.0,0.40327]
[1763190726763,0.09399359,96196.0,96195.0,0.40327]
[1763190726965,0.11615359,96196.0,96195.0,0.40327]
[1763190728771,0.09399359,96196.0,96195.0,0.40327]
[1763190728971,0.11615359,96196.0,96195.0,0.40327]
[1763190731564,0.09399359,96196.0,96195.0,0.40327]
[1763190737172,0.11594359,96196.0,96195.0,0.40327]
[1763190738673,0.13810359,96196.0,96195.0,0.40327]
[1763190739061,0.11594359,96196.0,96195.0,0.40327]
[1763190739876,0.09399359,96196.0,96195.0,0.40327]
[1763190740577,0.09399359,96196.0,96195.0,0.41501]
[1763190742275,0.11594359,96196.0,96195.0,0.41501]
[1763190746378,0.13810359,96196.0,96195.0,0.41501]
[1763190748084,0.13810359,96196.0,96195.0,0.47120407]
[1763190748485,0.13810359,96196.0,96195.0,0.41501]
[1763190750581,0.11594359,96196.0,96195.0,0.41501]
[1763190752886,0.09399359,96196.0,96195.0,0.41501]
[1763190753090,0.11508359,96196.0,96195.0,0.41501]
[1763190755883,0.11508359,96196.0,96195.0,0.47120758]
[1763190756788,0.11508359,96196.0,96195.0,0.41501]
[1763190757184,0.09399359,96196.0,96195.0,0.41501]
[1763190762688,0.09399359,96196.0,96195.0,0.5190332]
[1763190764382,0.3608,96215.0,96205.0,0.04399]
[1763190764692,0.12018031,96206.0,96205.0,0.40479]
[1763190771493,0.00025986,96206.0,96205.0,0.40479]
[1763190772088,0.00025986,96206.0,96205.0,0.46087758]
[1763190772294,0.02134986,96206.0,96205.0,0.46087758]
[1763190773390,0.02134986,96206.0,96205.0,0.40479]
[1763190773791,0.00025986,96206.0,96205.0,0.40479]
[1763190776493,0.02134986,96206.0,96205.0,0.40479]
[1763190776690,0.00025986,96206.0,96205.0,0.40479]
[1763190781393,0.04539986,96206.0,96205.0,0.40479]
[1763190783694,0.02295986,96206.0,96205.0,0.40479]
[1763190787108,0.04539986,96206.0,96205.0,0.40479]
[1763190788398,0.02295986,96206.0,96205.0,0.40479]
[1763190788599,0.00025986,96206.0,96205.0,0.40479]
[1763190788799,0.04539986,96206.0,96205.0,0.40479]
[1763190789000,0.02295986,96206.0,96205.0,0.40479]
[1763190789201,0.00025986,96206.0,96205.0,0.40479]
[1763190789509,0.02295986,96206.0,96205.0,0.40479]
[1763190789705,0.15504563,96206.0,96205.0,0.40479]
[1763190789906,0.15504563,96206.0,96203.0,0.03740366]
[1763190790102,0.05842,96204.0,96203.0,0.03740366]
[1763190790303,0.04514,96200.0,96199.0,0.03740366]
[1763190790502,0.04733803,96200.0,96199.0,0.06071366]
[1763190790705,0.16763932,96200.0,96199.0,0.08224366]
[1763190792206,0.16763932,96200.0,96199.0,0.04484]
[1763190794215,0.16763932,96200.0,96199.0,0.08224229]
[1763190797303,0.16763932,96200.0,96199.0,0.04484]
[1763190811416,0.04375,96199.0,96198.0,0.03740229]
[1763190811615,0.05283,96198.0,96197.0,0.12264229]
[1763190812015,0.16732152,96198.0,96197.0,0.08524]
[1763190812225,0.16732152,96198.0,96197.0,0.12263455]
[1763190813022,0.16732152,96198.0,96197.0,0.10769]
[1763190813219,0.16732152,96198.0,96197.0,0.14508455]
[1763190815325,0.16732152,96198.0,96197.0,0.10769]
[1763190816322,0.16732152,96198.0,96197.0,0.1304]
[1763190822143,0.16732152,96198.0,96197.0,0.04516]
[1763190823741,0.16732152,96198.0,96197.0,0.40596]
[1763190832649,0.15824152,96198.0,96197.0,0.40596]
[1763190840959,0.11449152,96198.0,96197.0,0.40596]
[1763190841257,0.10942987,96205.0,96204.0,0.00476]
[1763190841448,0.10942987,96205.0,96204.0,0.04781]
[1763190841756,0.01284,96222.0,96205.0,0.04305]
[1763190845759,0.005,96236.0,96204.0,0.00476]
[1763190845760,0.05595,96234.0,96213.0,0.01273]
[1763190845963,0.05595,96234.0,96233.0,0.04305]
[1763190846360,0.16898489,96234.0,96233.0,0.04305]
[1763190847162,0.16998489,96234.0,96233.0,0.04305]
[1763190847655,0.17098489,96234.0,96233.0,0.02187]
[1763190847852,0.3608,96253.0,96252.0,0.00282]
[1763190848057,0.05595,96258.0,96257.0,0.00282]
[1763190848260,0.05595,96258.0,96257.0,0.36362]
[1763190848559,0.17443763,96258.0,96257.0,0.36362]
[1763190855864,0.17443763,96258.0,96247.0,0.36362]
[1763190855865,0.0567,96248.0,96247.0,0.36362]
[1763190856065,0.0567,96248.0,96247.0,0.00282]
[1763190856369,0.0567,96248.0,96247.0,0.36362]
[1763190856370,0.1732027,96248.0,96247.0,0.36362]
[1763190860159,0.1732027,96248.0,96247.0,0.3608]
[1763190860361,0.0567,96244.0,96238.0,0.3608]
[1763190860667,0.04335,96239.0,96238.0,0.3258]
[1763190860969,0.15179904,96239.0,96238.0,0.3258]
[1763190862368,0.15179904,96239.0,96238.0,0.34814]
[1763190862667,0.15179904,96239.0,96238.0,0.3702]
[1763190862864,0.12973904,96239.0,96238.0,0.3702]
[1763190863467,0.15179904,96239.0,96238.0,0.3702]
[1763190864767,0.10844904,96239.0,96238.0,0.3702]
[1763190865363,0.15179904,96239.0,96238.0,0.3712]
[1763190865870,0.15179904,96239.0,96238.0,0.3702]
[1763190866072,0.15179904,96239.0,96238.0,0.3712]
[1763190866473,0.15179904,96239.0,96238.0,0.3702]
[1763190866672,0.15179904,96239.0,96238.0,0.3712]
[1763190867372,0.15179904,96239.0,96238.0,0.3268]
[1763190868469,0.15179904,96239.0,96238.0,0.001]
[1763190868671,0.043,96238.0,96237.0,0.0852]
[1763190869072,0.15468828,96238.0,96237.0,0.0852]
[1763190871569,0.51548828,96238.0,96237.0,0.0852]
[1763190871776,0.51548828,96238.0,96237.0,0.0502]
[1763190872274,0.043,96230.0,96229.0,0.00015587]
[1763190872474,0.05271803,96230.0,96229.0,0.00015587]
[1763190872672,0.17040086,96230.0,96229.0,0.00015587]
[1763190879577,0.17140086,96230.0,96229.0,0.00015587]
[1763190883679,0.17140086,96230.0,96220.0,0.08522]
[1763190883680,0.043,96221.0,96220.0,0.08522]
[1763190884081,0.05874803,96220.0,96219.0,0.3608]
[1763190884397,0.043,96207.0,96206.0,0.40507]
[1763190884686,0.16050886,96207.0,96206.0,0.40507]
[1763190894890,0.16050886,96207.0,96206.0,0.04427]
[1763190896688,0.11750886,96207.0,96206.0,0.04427]
[1763190897086,0.11970335,96209.0,96208.0,0.00968]
[1763190897283,0.02108,96209.0,96208.0,0.05395]
[1763190897679,0.16270335,96209.0,96208.0,0.05395]
[1763190898886,0.11970335,96209.0,96208.0,0.05395]
[1763190899191,0.10881832,96215.0,96212.0,0.01317]
[1763190899493,0.00015587,96216.0,96215.0,0.04478]
[1763190899884,0.10897419,96216.0,96215.0,0.04478]
[1763190900095,0.15197419,96216.0,96215.0,0.04478]
[1763190901596,0.15197419,96216.0,96215.0,0.02165]
[1763190901792,0.043,96214.0,96213.0,0.38245]
[1763190901995,0.043,96206.0,96205.0,0.3608]
[1763190902295,0.15422341,96206.0,96205.0,0.3608]
[1763190903995,0.15422341,96206.0,96205.0,0.38245]
[1763190905498,0.043,96199.0,96198.0,0.10689]
[1763190905792,0.16189084,96199.0,96198.0,0.08524]
[1763190905992,0.043,96198.0,96197.0,0.00015587]
[1763190906192,0.043,96188.0,96187.0,0.3608]
[1763190906393,0.043,96184.0,96180.0,0.03736661]
[1763190906594,0.043,96184.0,96179.0,0.03736661]
[1763190906794,0.15867463,96184.0,96178.0,0.03736661]
[1763190907192,0.15867463,96184.0,96183.0,0.0217563]
[1763190907392,0.15867463,96184.0,96183.0,0.0001063]
[1763190907897,0.043,96177.0,96176.0,0.3258]
[1763190908096,0.043,96175.0,96174.0,0.00015587]
[1763190908398,0.16317726,96175.0,96174.0,0.00015587]
[1763190908793,0.16325493,96175.0,96174.0,0.00015587]
[1763190909996,0.16325493,96175.0,96174.0,0.00115587]
[1763190911094,0.16325493,96175.0,96174.0,0.00215587]
[1763190915891,0.04601803,96170.0,96169.0,0.04783]
[1763190916095,0.00219803,96170.0,96166.0,0.00025997]
[1763190916302,0.3608,96167.0,96150.0,0.05899]
[1763190916507,0.3608,96157.0,96156.0,0.05899]
[1763190916705,0.3609063,96157.0,96156.0,0.05899]
[1763190917003,0.47024096,96157.0,96156.0,0.05899]
[1763190918191,0.47024096,96157.0,96150.0,0.05899]
[1763190918996,0.47024096,96157.0,96150.0,0.03607]
[1763190919206,0.47024096,96157.0,96147.0,0.04604596]
[1763190919993,0.47024096,96157.0,96147.0,0.13132596]
[1763190920400,0.47024096,96157.0,96150.0,0.02397]
[1763190920706,0.47024096,96157.0,96150.0,0.05999]
[1763190920903,0.47024096,96157.0,96147.0,0.10840596]
[1763190921102,0.47024096,96157.0,96147.0,0.08643596]
[1763190921103,0.3608,96148.0,96147.0,0.08643596]
[1763190921414,0.48027314,96148.0,96147.0,0.08643596]
[1763190921709,0.48027314,96148.0,96147.0,0.08543596]
[1763190922503,0.48027314,96148.0,96147.0,0.05043596]
[1763190922703,0.48036703,96148.0,96138.0,0.06995704]
[1763190922902,0.3608,96139.0,96138.0,0.06995704]
[1763190923103,0.3608,96139.0,96138.0,0.09292704]
[1763190923403,0.47526906,96139.0,96138.0,0.06995704]
[1763190924099,0.47526906,96139.0,96138.0,0.07095704]
[1763190924598,0.47526906,96139.0,96138.0,0.07195704]
[1763190925703,0.47526906,96139.0,96138.0,0.09492704]
[1763190925896,0.47526906,96139.0,96138.0,0.11784704]
[1763190939914,0.47526906,96139.0,96138.0,0.09492704]
[1763190940112,0.47537257,96139.0,96138.0,0.09492704]
[1763190940419,0.47537257,96139.0,96138.0,0.06995704]
[1763190940810,0.47537257,96139.0,96138.0,0.09149704]
[1763190941013,0.47537257,96139.0,96138.0,0.11399704]
[1763190941316,0.47537257,96139.0,96138.0,0.06995704]
[1763190941708,0.47537257,96139.0,96138.0,0.05685704]
[1763190942910,0.5124765,96139.0,96138.0,0.05685704]
[1763190943117,0.47537257,96139.0,96138.0,0.05685704]
[1763190944320,0.5312102,96139.0,96138.0,0.05685704]
[1763190944520,0.47537257,96139.0,96138.0,0.05685704]
[1763190948715,0.47537257,96139.0,96138.0,0.07839704]
[1763190949924,0.47537257,96139.0,96138.0,0.10089704]
[1763190955528,0.53109101,96139.0,96138.0,0.10089704]
[1763190955734,0.47537257,96139.0,96138.0,0.10089704]
[1763190956135,0.51252351,96139.0,96138.0,0.10089704]
[1763190958230,0.47537257,96139.0,96138.0,0.10089704]
[1763190961434,0.47537257,96139.0,96138.0,0.07839704]
[1763190961638,0.47537257,96139.0,96138.0,0.05685704]
[1763190962040,0.47537257,96139.0,96138.0,0.07907704]
[1763190962542,0.47537257,96139.0,96138.0,0.05685704]
[1763190962741,0.47537257,96139.0,96138.0,0.07907704]
[1763190962937,0.47537257,96139.0,96138.0,0.10197704]
[1763190964539,0.51253835,96139.0,96138.0,0.10197704]
[1763190964744,0.47537257,96139.0,96138.0,0.10197704]
[1763190972045,0.11457257,96139.0,96138.0,0.10197704]
[1763190978454,0.3608,96147.0,96146.0,0.04365]
[1763190978657,0.3608,96147.0,96145.0,0.00828]
[1763190978658,0.3608,96155.0,96154.0,0.04365]
[1763190978854,0.11434844,96160.0,96159.0,0.04365]
[1763190979056,0.04500803,96160.0,96159.0,0.04365]
[1763190979251,0.15672267,96160.0,96159.0,0.04365]
[1763190981158,0.13511267,96160.0,96159.0,0.04365]
[1763190981358,0.11391267,96160.0,96159.0,0.04365]
[1763190984266,0.11171464,96160.0,96159.0,0.04365]
[1763190984660,0.11988142,96165.0,96164.0,0.04365]
[1763190984967,0.3608,96168.0,96165.0,0.05721]
[1763190985260,0.11923458,96166.0,96165.0,0.05721]
[1763190988168,0.11923458,96166.0,96165.0,0.05821]
[1763190991464,0.16359458,96166.0,96165.0,0.04465]
[1763190991764,0.16359458,96166.0,96165.0,0.001]
[1763190992066,0.04456,96163.0,96162.0,0.08527]
[1763190992470,0.16172813,96163.0,96162.0,0.08527]
[1763190997072,0.16172813,96163.0,96162.0,0.10805]
[1763190997772,0.16172813,96163.0,96162.0,0.12932]
[1763191002368,0.13856813,96163.0,96162.0,0.12932]
[1763191002672,0.13856813,96163.0,96162.0,0.04405]
[1763191002978,0.16172813,96163.0,96162.0,0.04405]
[1763191004976,0.16172813,96163.0,96162.0,0.04505]
[1763191005476,0.16172813,96163.0,96162.0,0.04405]
[1763191011380,0.11716813,96163.0,96162.0,0.04405]
[1763191011784,0.14025218,96165.0,96164.0,0.04405]
[1763191012184,0.04456,96165.0,96164.0,0.04405]
[1763191012385,0.16499318,96165.0,96164.0,0.04405]
[1763191012877,0.04456,96159.0,96158.0,0.02278]
[1763191013276,0.16499318,96159.0,96158.0,0.04405]
[1763191015583,0.04456,96158.0,96157.0,0.3608]
[1763191015985,0.15380498,96158.0,96157.0,0.3608]
[1763191016482,0.04456,96154.0,96153.0,0.06962]
[1763191016884,0.04456,96151.0,96150.0,0.00015596]
[1763191017284,0.15424724,96151.0,96150.0,0.00015596]
[1763191018081,0.51504724,96151.0,96150.0,0.00015596]
[1763191018587,0.04426,96139.0,96138.0,0.05685704]
[1763191018991,0.161434,96139.0,96138.0,0.05685704]
[1763191020790,0.161434,96139.0,96138.0,0.05785704]
[1763191020991,0.161434,96139.0,96138.0,0.08094704]
[1763191021686,0.161434,96139.0,96138.0,0.05785704]
[1763191025693,0.161434,96139.0,96138.0,0.08094704]
[1763191025894,0.161434,96139.0,96138.0,0.10252704]
[1763191026690,0.161434,96139.0,96138.0,0.05785704]
[1763191026896,0.161434,96139.0,96138.0,0.001]
[1763191031692,0.161434,96139.0,96138.0,0.02409]
[1763191031892,0.161434,96139.0,96138.0,0.04522]
[1763191032590,0.161434,96139.0,96138.0,0.001]
[1763191032997,0.161434,96139.0,96138.0,0.02416]
[1763191033595,0.161434,96139.0,96138.0,0.001]
[1763191038298,0.161434,96139.0,96138.0,0.04529]
[1763191045500,0.161434,96139.0,96138.0,0.08271778]
[1763191046303,0.161434,96139.0,96138.0,0.04529]
[1763191049097,0.117174,96139.0,96138.0,0.10136908]
[1763191049296,0.117174,96139.0,96138.0,0.04529]
[1763191049500,0.15914019,96149.0,96148.0,0.05334]
[1763191049705,0.04369,96149.0,96148.0,0.05334]
[1763191049999,0.15914019,96149.0,96148.0,0.05334]
[1763191050300,0.15914019,96149.0,96148.0,0.09078119]
[1763191050508,0.15914019,96149.0,96148.0,0.08185119]
[1763191051000,0.15914019,96149.0,96148.0,0.04441]
[1763191051402,0.15914019,96149.0,96148.0,0.08184373]
[1763191052702,0.15914019,96149.0,96148.0,0.04441]
[1763191053213,0.15914019,96149.0,96148.0,0.08282848]
[1763191053509,0.15914019,96149.0,96148.0,0.04541]
[1763191054309,0.15914019,96149.0,96148.0,0.0828233]
[1763191054807,0.15914019,96149.0,96148.0,0.04541]
[1763191055203,0.15914019,96149.0,96148.0,0.082816]
[1763191060105,0.15914019,96149.0,96148.0,0.081816]
[1763191060312,0.15914019,96149.0,96148.0,0.082816]
[1763191060710,0.15914019,96149.0,96148.0,0.092416]
[1763191062612,0.15914019,96149.0,96148.0,0.091416]
[1763191062812,0.15914019,96149.0,96148.0,0.092416]
[1763191063505,0.15914019,96149.0,96148.0,0.091416]
[1763191063708,0.15914019,96149.0,96148.0,0.092416]
[1763191064911,0.15914019,96149.0,96148.0,0.05501]
[1763191066117,0.15914019,96149.0,96148.0,0.05401]
[1763191066321,0.15914019,96149.0,96148.0,0.05501]
[1763191066518,0.11545019,96149.0,96148.0,0.05501]
[1763191067018,0.1603797,96159.0,96158.0,0.04441]
[1763191067316,0.04369,96159.0,96158.0,0.04441]
[1763191067710,0.16356822,96159.0,96158.0,0.04441]
[1763191069534,0.16356822,96159.0,96158.0,0.04541]
[1763191069930,0.11987822,96159.0,96158.0,0.04541]
[1763191070437,0.16356822,96159.0,96158.0,0.04541]
[1763191070838,0.16356822,96159.0,96158.0,0.10158662]
[1763191072337,0.16356822,96159.0,96158.0,0.04641]
[1763191073029,0.16356822,96159.0,96158.0,0.04541]
[1763191073230,0.16356822,96159.0,96158.0,0.04641]
[1763191073941,0.16356822,96159.0,96158.0,0.04541]
[1763191076130,0.16356822,96159.0,96158.0,0.04641]
[1763191076538,0.16356822,96159.0,96158.0,0.04541]
[1763191076741,0.16356822,96159.0,96158.0,0.04641]
[1763191076931,0.16356822,96159.0,96158.0,0.04541]
[1763191078132,0.16356822,96159.0,96158.0,0.001]
[1763191078536,0.16356822,96159.0,96158.0,0.002]
[1763191078840,0.16356822,96159.0,96158.0,0.04765]
[1763191079242,0.16356822,96159.0,96158.0,0.04565]
[1763191079541,0.16356822,96159.0,96158.0,0.0224]
[1763191080237,0.16356822,96159.0,96157.0,0.39819457]
[1763191080238,0.04411,96158.0,96157.0,0.39819457]
[1763191080744,0.15658081,96158.0,96157.0,0.39819457]
[1763191081745,0.04411,96153.0,96152.0,0.03739457]
[1763191081934,0.04411,96151.0,96150.0,0.03739457]
[1763191082334,0.04630803,96150.0,96149.0,0.00010459]
[1763191082739,0.16313486,96150.0,96149.0,0.00010459]
[1763191082935,0.16313486,96150.0,96149.0,0.04575459]
[1763191084938,0.16313486,96150.0,96149.0,0.10193121]
[1763191084939,0.13959683,96150.0,96149.0,0.10193121]
[1763191085132,0.11682683,96150.0,96149.0,0.40855459]
[1763191085337,0.04426596,96166.0,96165.0,0.04565]
[1763191085546,0.04426596,96166.0,96165.0,0.40645]
[1763191085737,0.15866685,96166.0,96165.0,0.40645]
[1763191088747,0.15866685,96166.0,96165.0,0.44385769]
[1763191088935,0.15866685,96166.0,96165.0,0.44485769]
[1763191089135,0.15866685,96166.0,96165.0,0.40745]
[1763191091248,0.15866685,96166.0,96165.0,0.3842]
[1763191091445,0.15866685,96166.0,96165.0,0.4073]
[1763191092442,0.15866685,96166.0,96165.0,0.4063]
[1763191092746,0.15866685,96166.0,96165.0,0.4073]
[1763191094547,0.15866685,96166.0,96165.0,0.3618]
[1763191095346,0.15866685,96166.0,96165.0,0.38311]
[1763191095846,0.15866685,96166.0,96165.0,0.40621]
[1763191096047,0.15866685,96166.0,96165.0,0.40521]
[1763191097036,0.15866685,96166.0,96165.0,0.40621]
[1763191099047,0.15866685,96166.0,96165.0,0.40521]
[1763191099243,0.15866685,96166.0,96165.0,0.40621]
[1763191100247,0.15866685,96166.0,96165.0,0.42003]
[1763191100444,0.09451719,96166.0,96165.0,0.78083]
[1763191101343,0.09132469,96166.0,96165.0,0.78083]
[1763191101547,0.00039,96200.0,96199.0,0.04441]
[1763191101749,0.02385803,96200.0,96199.0,0.04441]
[1763191102047,0.29354803,96203.0,96200.0,0.00219803]
[1763191102449,0.10905488,96202.0,96200.0,0.00219803]
[1763191102648,0.05689488,96202.0,96200.0,0.00219803]
[1763191102850,0.10970147,96205.0,96200.0,0.00219803]